Cogmind - Beta 16.1 *** ADVENTURER MODE // 2026.02.22 @ 12:55:19 Player: liability Result: Destroyed by GA-N55(R) with Subdweller Machine Gun Performance ------------- Evolutions (0) 0 Regions Visited (2) 400 Robots Destroyed (23) 115 Value Destroyed (512) 512 Prototype IDs (1) 20 Alien Tech Used (0) 0 Bonus (0) 0 TOTAL SCORE: 1047 Bonus ------- None Cogmind --------- Core Integrity 0/250 Matter 290/300 Energy 250/250 System Corruption 0% Temperature Cool (0) Movement Core (1650) Ox32 Location -10/Subcaves Parts ------- > --- POWER (1) -------- Ion Engine > --- PROPULSION (2) --- (None) > --- UTILITY (2) ------ Huge Storage Unit Gun Armor > --- WEAPON (2+2) ----- Subdweller Machine Gun Subdweller Machine Gun > --- INVENTORY (25) --- Improved Heat Sink High-capacity Matter Pod (200) Subdweller Optics Improved Terrain Scanner Light Armor Plating Makeshift Hacking Suite Datajack Scrap Shield Fragment (48) Scrap Shield Fragment (43) Peak State ------------ > --- POWER ------------ Ion Engine > --- PROPULSION ------- (None) > --- UTILITY ---------- Huge Storage Unit Gun Armor > --- WEAPON ----------- Subdweller Machine Gun Subdweller Machine Gun > --- INVENTORY -------- Improved Heat Sink High-capacity Matter Pod Subdweller Optics Improved Terrain Scanner Light Armor Plating Datajack Scrap Shield Fragment Scrap Shield Fragment [Rating: 16] Favorites ----------- Power Ion Engine Engine Ion Engine Propulsion Light Treads Treads Light Treads Utility Huge Storage Unit Device Seismic Detector Storage Huge Storage Unit Protection Gun Armor Weapon Subdweller Machine Gun Energy Gun Medium Laser Ballistic Gun Subdweller Machine Gun Build | -11 -10 -10 ------- Run | Yrd Mat Sub Slots Evolved . | . . . Power . | . . . Propulsion . | . . . Utility . | . . . Weapon . | . . . Parts Attached 14 | 7 2 5 Power 2 | 1 . 1 Engine 2 | 1 . 1 Core . | . . . Reactor . | . . . Propulsion 2 | 2 . . Treads 2 | 2 . . Leg . | . . . Wheel . | . . . Hover . | . . . Flight . | . . . Utility 5 | 2 1 2 Device 1 | 1 . . Storage 2 | 1 1 . Processor . | . . . Hackware . | . . . Protection 2 | . . 2 Artifact . | . . . Weapon 5 | 2 1 2 Energy Gun 2 | 1 1 . Energy Cannon . | . . . Ballistic Gun 3 | 1 . 2 Ballistic Cannon . | . . . Launcher . | . . . Special Weapon . | . . . Impact Weapon . | . . . Slashing Weapon . | . . . Piercing Weapon . | . . . Special Melee Weapon . | . . . Unidentified Prototypes 1 | . . 1 Parts Lost 6 | . . 6 Power 1 | . . 1 Propulsion 2 | . . 2 Utility 1 | . . 1 Weapon 2 | . . 2 Highest Loss Streak 6 | . . 6 To Critical Strikes 1 | . . 1 Average Backups 6 | . 4 6 Power . | . . . Propulsion . | . . . Utility 4 | . 3 5 Weapon . | . . . Tool/Special . | . . . Unused Backups 6 | . . 6 Power . | . . . Propulsion . | . . . Utility 5 | . . 5 Weapon . | . . . Tool/Special 1 | . . 1 Average Slot Usage (%) 70 | . 100 59 Engine 12 | . 14 11 Treads 8 | . 28 2 Device 4 | . 14 1 Storage 12 | . 14 11 Protection 7 | . . 10 Energy Gun 5 | . 15 2 Ballistic Gun 18 | . 12 20 Peak Build Rating 16 | 7 8 16 Average Rating 12 | 5 7 14 On Entrance 5 | . 7 8 Avg Prop Armor Cover (%) . | . . . Naked Turns . | . . . Heaviest Build 97 | 15 90 97 Greatest Support 40 | 40 40 40 Greatest Overweight (x) 32 | . 2 32 Average Overweight (x) 8 | . . 23 Largest Inventory Capacity 25 | 8 25 25 Average Capacity 22 | 7 17 25 Most Carried 9 | 1 7 9 Average Carried 7 | . 4 8 Final Capacity 25 | 8 25 25 Final Carried 9 | 1 6 9 Class Distribution -------------------- 100% | Mutant Dominant Class ---------------- Mutant | -10/Materials Mutant | -10/Subcaves Resources | -11 -10 -10 ----------- Run | Yrd Mat Sub Matter Collected 616 | 236 203 177 Remotely . | . . . Salvage Created 727 | 63 476 188 Parts 53 | 5 32 16 Haulers Intercepted 1 | . 1 . Recyclers Shooed . | . . . Parts Field Recycled . | . . . Retrieved Matter . | . . . Parts Self-Destructed 6 | . . 6 Prevented . | . . . Parts Restored . | . . . Kills | -11 -10 -10 ------- Run | Yrd Mat Sub Combat Hostiles Destroyed 16 | . 11 5 Guns 16 | . 11 5 Classes Destroyed 7 | 2 4 1 Tunneler 1 | 1 . . Hauler 1 | . 1 . Recycler 2 | 1 1 . Watcher 3 | . 3 . Swarmer 6 | . 6 . Grunt 5 | . 5 . Subdweller 5 | . . 5 Best Kill Streak 5 | 2 5 2 Combat Bots Only 5 | . 5 2 Max Kills in Single Turn 2 | 1 2 1 Gunslinging 1 | . 1 . Exploded . | . . . Melee . | . . . Uniques/NPCs Destroyed . | . . . Combat | -11 -10 -10 -------- Run | Yrd Mat Sub Hostile Shots Fired 108 | . 59 49 Missed 32 | . 18 14 Hits 76 | . 41 35 Projectile 76 | . 41 35 Critical Strikes 5 | . 2 3 Damage Taken 914 | . 350 564 Core 253 | . 34 219 Absorbed by Shields . | . . . Ignored by Resistances 275 | . 112 163 Core Remaining (%) 100 | 100 . . Volleys Fired 53 | 2 32 19 Largest 2 | 2 2 2 Hottest 100 | 70 70 100 Shots Fired 98 | 4 64 30 Gun 98 | 4 64 30 Cannon . | . . . Launcher . | . . . Special . | . . . Kinetic 42 | 2 32 8 Thermal 56 | 2 32 22 Explosive . | . . . Electromagnetic . | . . . Robot Hit Streak 33 | 3 17 33 Robot Miss Streak 2 | . 2 1 Penetration Max . | . . . Secondary Targets 6 | . 5 1 Max Gunslinging Chain 1 | . 1 1 Shots Hit Robots 80 | 3 51 26 Core Hits 38 | 3 24 11 Critical Kills . | . . . Critical Parts Destroyed 2 | . 2 . Critical Strikes 6 | . 3 3 Burn 4 | . 1 3 Destroy 2 | . 2 . Melee Attacks . | . . . Impact . | . . . Slashing . | . . . Piercing . | . . . Sneak Attacks . | . . . Combat Hostiles . | . . . Follow-up Attacks . | . . . Damage Inflicted 1057 | 35 641 381 Guns 1053 | 35 637 381 Cannons . | . . . Explosions . | . . . Melee . | . . . Ramming 4 | . 4 . Kinetic 473 | 23 317 133 Thermal 580 | 12 320 248 Explosive . | . . . Electromagnetic . | . . . Impact . | . . . Slashing . | . . . Piercing . | . . . Highest Corruption . | . . . Average Corruption . | . . . Corruption Purged . | . . . Corruption Blocked . | . . . Overload Shots . | . . . Overflow Damage . | . . . Projectiles . | . . . Explosions . | . . . Melee . | . . . Knockbacks . | . . . Impact . | . . . Kinetic . | . . . Secondary . | . . . Self-Inflicted Damage . | . . . Shots . | . . . Rammed 1 | . 1 . Targets Rammed 1 | . 1 . Kicked . | . . . Crushed . | . . . Highest Temperature 238 | 18 238 . Average Temperature 55 | 10 58 . Received Heat Transfer 237 | . 237 . Siege Activations . | . . . Martial Activations . | . . . Shielding Activations . | . . . Robots Disrupted . | . . . Combat Hostiles . | . . . Robots Corrupted . | . . . Combat Hostiles . | . . . Parts Fried . | . . . Impact Corruptions . | . . . Robots Melted . | . . . Combat Hostiles . | . . . Parts Melted 7 | . 3 4 Heat Transferred 2035 | 37 1036 962 Parts Sabotaged . | . . . Parts Stolen . | . . . Parts Stripped . | . . . Power Chain Reactions . | . . . Alert | -11 -10 -10 ------- Run | Yrd Mat Sub Maximum Alert Level . | . . . Low Security (%) 100 | 100 100 . Level 1 . | . . . Level 2 . | . . . Level 3 . | . . . Level 4 . | . . . Level 5 . | . . . High Security . | . . . Max Security . | . . . Peak Influence 142 | 5 142 . Initial . | . . . Average 30 | 1 32 . Influence Increases 318 | 10 308 . Destroy 0b10 Robot/C 220 | . 220 . Destroy 0b10 Robot/NC 35 | 10 25 . Destroy Leader 48 | . 48 . Lose Combat Pursuer 15 | . 15 . Influence Decreases 318 | 10 308 . Time Decay 318 | 10 308 . Squads Dispatched 1 | . 1 . Investigation 1 | . 1 . Extermination . | . . . Reinforcement . | . . . Assault . | . . . Garrison . | . . . Intercept . | . . . Searches Triggered . | . . . Construction Impeded . | . . . Haulers Reinforced . | . . . Active Scanning Responses . | . . . Cargo Convoy Interrupts . | . . . Stealth | -11 -10 -10 --------- Run | Yrd Mat Sub Distress Signals 2 | . 2 . Communications Jammed . | . . . Distress Signals . | . . . Times Spotted 26 | . 20 6 Peak Tracking Total 6 | . 6 3 Tactical Retreats 1 | . 1 . Traps | -11 -10 -10 ------- Run | Yrd Mat Sub Traps Triggered 1 | . 1 . Indirectly . | . . . Trap Hack Attempts . | . . . Triggered . | . . . Disarmed . | . . . Reprogrammed . | . . . Reused . | . . . Traps Extracted . | . . . Installed . | . . . Triggered . | . . . Machines | -11 -10 -10 ---------- Run | Yrd Mat Sub Machines Disabled 1 | . 1 . Max in Single Turn 1 | . 1 . Machines Repaired . | . . . Machines Dismantled . | . . . Machines Sabotaged . | . . . Overloaded Fab Kills . | . . . Hacking | -11 -10 -10 --------- Run | Yrd Mat Sub Machines Accessed . | . . . Terminals . | . . . Fabricators . | . . . Repair Stations . | . . . Recycling Units . | . . . Scanalyzers . | . . . Garrison Access . | . . . Total Hacks . | . . . Successful . | . . . Failed . | . . . Catastrophic . | . . . Database Lockouts . | . . . Manual 1 | . 1 . Terminals . | . . . Fabricators . | . . . Repair Stations . | . . . Recycling Units . | . . . Scanalyzers . | . . . Garrison Access . | . . . Terminal Hacks . | . . . Fabricator Hacks . | . . . Repair Station Hacks . | . . . Recycling Unit Hacks . | . . . Scanalyzer . | . . . Garrison Access Hacks . | . . . Unauthorized Hacks . | . . . Terminals . | . . . Fabricators . | . . . Repair Stations . | . . . Recycling Units . | . . . Scanalyzers . | . . . Garrison Access . | . . . Data Cores Recovered . | . . . Used . | . . . Hacking Detections 1 | . 1 . Full Trace Events . | . . . Feedback Events . | . . . Feedback Blocked . | . . . Robot Schematics Acquired . | . . . Robots Built . | . . . Authchips . | . . . Time . | . . . Total Robot Build Rating . | . . . Part Schematics Acquired . | . . . Parts Built . | . . . Authchips . | . . . Time . | . . . Total Part Build Rating . | . . . Part Studies Acquired . | . . . Parts Repaired . | . . . Time . | . . . Parts Recycled . | . . . Recycled Matter . | . . . Retrieved Matter . | . . . Retrieved Components . | . . . Parts Scanalyzed . | . . . Part Schematics Acquired . | . . . Parts Damaged . | . . . Bothacking | -11 -10 -10 ------------ Run | Yrd Mat Sub Used RIF Installer . | . . . Robots Hacked . | . . . Non-combat . | . . . Combat . | . . . Robot Hacks Applied . | . . . Relay Couplers Released . | . . . Fabnet Peak Effective % . | . . . Robots Rewired . | . . . Allies Hacked . | . . . Hacks Repelled . | . . . Allies | -11 -10 -10 -------- Run | Yrd Mat Sub Total Allies . | . . . Largest Group . | . . . Highest-Rated Group . | . . . Highest-Rated Ally . | . . . Total Orders . | . . . Ally Attacks . | . . . Total Damage . | . . . Kills . | . . . Allies Corrupted . | . . . Allies Melted . | . . . Intel | -11 -10 -10 ------- Run | Yrd Mat Sub Active Infowar (turns) 1355 | 27 1083 245 Seismic 1355 | 27 1083 245 Robot Analysis Total . | . . . Derelict Logs Recovered 1 | . . 1 Drone Launches . | . . . Drone Recoveries . | . . . Exploration | -11 -10 -10 ------------- Run | Yrd Mat Sub Turns Passed 4270 | 91 1083 3096 Spaces Moved 718 | 48 435 235 Core 175 | 2 . 173 Treads 543 | 46 435 62 Legs . | . . . Wheels . | . . . Hover . | . . . Flight . | . . . Fastest Speed 50 | 50 160 320 Average Speed 570 | 155 224 1294 Slowest Speed 1650 | 160 320 1650 Overloaded Moves . | . . . Propulsion Burnouts . | . . . Robots Hopped . | . . . Potential Cave-ins . | . . . Cave-ins Triggered . | . . . Exploration Rate (%) 33 | 3 73 23 Regions Visited 2 Branch Regions 1 Pre-discovered Areas . | . . . Known Exits Taken . | . . . Unknown Exits Taken 2 | 1 1 . Scrap Searched . | . . . Spaces Dug . | . . . Terrain Destroyed . | . . . Melee . | . . . Projectile . | . . . AOE . | . . . Terrain Rammed . | . . . Walls Destroyed . | . . . Machines Disabled . | . . . Actions | -11 -10 -10 --------- Run | Yrd Mat Sub Total 797 | 57 476 264 Wait . | . . . Move 716 | 47 434 235 Hop . | . . . Pick Up 11 | 1 5 5 Fast Attach 10 | 7 1 2 Attach 2 | . . 2 Detach . | . . . Swap 2 | . 1 1 Drop 2 | . 2 . Fire 53 | 2 32 19 Melee . | . . . Ram . | . . . Kick . | . . . Crush 1 | . 1 . Escape Stasis . | . . . Rewire . | . . . Trap . | . . . Miscellaneous . | . . . Route ------- -11/Scrapyard -10/Materials (discovered 4 exits: [*Mat x2] / [*Min] / [*Sub]) -10/Subcaves History --------- Turn | Location | Event 18 | -11/Scrapyard | Discovered new exit (range 15) 92 | -11/Scrapyard | Entered Materials 189 | -10/Materials | Discovered new exit (range 16) 302 | -10/Materials | Build established: Mutant 539 | -10/Materials | Discovered new exit (range 16) 981 | -10/Materials | Discovered new exit (range 15) 1146 | -10/Materials | Discovered new exit (range 8) 1175 | -10/Materials | Entered Subcaves 1264 | -10/Subcaves | Learned 2 Materials zone layouts 1385 | -10/Subcaves | A Subdweller sparked back to life 1416 | -10/Subcaves | Core integrity fell below 50% 1425 | -10/Subcaves | Core integrity fell below 20% 1451 | -10/Subcaves | Lost 6 parts (1p2n1u2w) 1509 | -10/Subcaves | Found Prototype Protection 1702 | -10/Subcaves | Identified Gun Armor 1703 | -10/Subcaves | Attached Gun Armor, gained temporary slots: Weapon x2 4271 | -10/Subcaves | Destroyed by GA-N55(R) with Subdweller Machine Gun Last Messages --------------- 01424_ Acquired Sub. Machine Gun. 01429_ UG-453(R) destroyed. 01436_ NX-JLY(R) affixes Scrap Shield Fragment to Scrap Shield. 01442_ NX-JLY(R) destroyed. 01459_ Acquired Sub. Machine Gun. 01477_ Acquired 30 matter. 01509_ Acquired Prototype Protection. 01510_ Acquired 34 matter. 01526_ Acquired 36 matter. 01532_ Subatomizers dissect the Sub. Optics. 01702_ Identified Gun Armor. 01703_ Core temporarily expanded with Weapon slot. 01727_ Subatomizers dissect the Sub. Optics. 01739_ Subatomizers dissect the Sub. Optics, destroying it. 01752_ Subatomizers dissect the Sub. Power Source. 02091_ 37-X3D(O) collects matter. 02295_ UB-TIC(u) deconstructs Twisted Machinery. 02363_ Acquired Mak. Hacking Suite. 02716_ UB-TIC(u) deconstructs Twisted Machinery. 04267_ GA-N55(R): "WEHOME!" Map ----- +----------------------------------------------------+ | ????????## ##?????????????????????????? | | ????????# #??????????????????????????? | | ????????## ## #??????????????????????????? | | ?????????#### #??????????????????????????? | | ???????????# ##?????????????????????????? | | ???????????# ##????????????????????????? | | ???????????#"" ##???????????????????????? | | ???????????## ##??????????????????????? | | ????????????## ##?????????????????????? | | ?????????????# ##????????????????????? | | ?????????????# #????????????????????? | | ?????????????# ### ##?#?????????????????? | | ????????? #### # ####??????????????? | | ????????# """" ##?# #??????????????? | | ????????### ### #??# #??????????????? | | ??????????#####??###??#R ### #?????????????? | | ?????????????????????## #??? #???????????? | | ?????????????????????# ##???? #??????????? | | ?????????????????????# ##??????? ?????????? | | ?????????????????????## #??????##### ????????? | | ??????????????????????# ######?# ##???????????? | | ?????????????????????## #?# ##??????????# | | ????????????????????## ### #????????## | | ???????????????????## #????#### | | ??????????????????## ##???# | | ??????????????????# @ ##### ?? | | ???????????# ### #????? | | ??????????# ##?# ##???? | | ??????????? ??## ##??? | | ??????????? ##?## ###? | | ???????????? ##???# ## | | ???????????? ?????# # | | ?????????????# ??????# | | ?????????????? ??????# #### ##### ## | | ???????????????????????# #??###???# ## | | ???????????????????????# ###????????# ### | | ???????????????????????###???????????# #?## | | ?????????????????????????????????????# ##??####### | | ?????????????????????????????????????###?????????? | | ?????????????????????????????????????????????????? | | ?????????????????????????????????????????????????? | | ?????????????????????????????????????????????????? | | ?????????????????????????????????????????????????? | | ?????????????????????????????????????????????????? | | ?????????????????????????????????????????????????? | | ?????????????????????????????????????????????????? | | ?????????????????????????????????????????????????? | | ?????????????????????????????????????????????????? | | ?????????????????????????????????????????????????? | | ?????????????????????????????????????????????????? | +----------------------------------------------------+ Best States ------------- Heat Dissipation 25 Energy Generation 10 Energy Capacity 250 Matter Stores 300 Matter Capacity 300 Sight Range 16 Terrain Scan Density 10 Armor Coverage 150 Resistance: KI 20 Resistance: TH 20 Resistance: EX 20 Resistance: EM 20 Resistance: I 20 Resistance: S 20 Resistance: P 20 Evasion (%) 40 Recoil Reduction 2 Offensive Hacking 10 Item Schematics ----------------- None Robot Schematics ------------------ None Fabricated ------------ Nothing Repaired ---------- Nothing Studied --------- None Alien Tech Used ----------------- None Achievements -------------- None Challenges ------------ None Game ------ Seed TripodDroneSabre Manual? 0 Play Time 00:10:49 Cumulative 32.9 hours Start 2026.02.22 @ 12:45:26 End 2026.02.22 @ 12:55:19 Sessions 1 Manual Loads 0 Difficulty Adventurer Special Mode None Game No. 32 Rogue 0 Adventurer 32 Explorer 0 Win Type - Total 0 Types 0/0/0/0/0/0/0/0/0/0 Lore% 12 Gallery% 32 Achievement% 28 Wizard Run 0 Options --------- Layout 0 ASCII 0 Keyboard 0 Movement Mouse Keybinds 0 Fullscreen 1 Font 18/SmallcapsGlow Map View 76x50 Zoom Use 0% Tactical HUD 1 Map Filters NONE Filters NONE Steam 1 RUN: 8ba89258-421c-4881-bd1b-5372313f60c5